fUST/lending_fUST_20250129
["ID","MTS","AMOUNT","RATE_DAILY","PERIOD"]
[350740042,1738098640984,-552.24,0.00016575,2]
[350740043,1738098640995,-500.0,0.00016575,2]
[350740044,1738098641007,-500.0,0.00016575,2]
[350740045,1738098641021,-500.0,0.00016575,2]
[350740046,1738098641033,-500.0,0.00016575,2]
[350740047,1738098641045,-554.44,0.00016575,2]
[350740048,1738098641061,-500.0,0.00016575,2]
[350740049,1738098641072,-500.0,0.00016575,2]
[350740050,1738098641085,-500.0,0.00016575,2]
[350740051,1738098641098,-150.58306452,0.0001668,2]
[350740052,1738098641111,-259.32,0.000167,2]
[350740053,1738098641124,-500.0,0.00016711,2]
[350740054,1738098641135,-500.0,0.00016711,2]
[350740055,1738098641147,-4970.53,0.00016711,2]
[350740056,1738098641159,-831.24,0.00016711,2]
[350740057,1738098641172,-500.0,0.00016712,2]
[350740058,1738098641186,-500.0,0.00016712,2]
[350740059,1738098641198,-500.0,0.00016712,2]
[350740060,1738098641211,-500.0,0.00016712,2]
[350740061,1738098641223,-500.0,0.00016712,2]
[350740062,1738098641235,-500.0,0.00016712,2]
[350740063,1738098641248,-596.59591009,0.00016712,2]
[350740064,1738098641261,-500.0,0.00016712,2]
[350740065,1738098641273,-500.0,0.00016712,2]
[350740066,1738098641285,-500.0,0.00016712,2]
[350740067,1738098641297,-500.0,0.00016712,2]
[350740068,1738098641312,-500.0,0.00016712,2]
[350740069,1738098641324,-500.0,0.00016712,2]
[350740070,1738098641336,-500.0,0.00016712,2]
[350740071,1738098641348,-1304.9,0.00016712,2]
[350740072,1738098641361,-500.0,0.00016712,2]
[350740073,1738098641374,-2545.06,0.00016712,2]
[350740074,1738098641385,-767.31,0.00016712,2]
[350740075,1738098641396,-500.0,0.00016712,2]
[350740076,1738098641409,-500.0,0.00016712,2]
[350740077,1738098641420,-500.0,0.00016712,2]
[350740078,1738098641434,-12732.97,0.00016712,2]
[350740079,1738098641446,-350.0,0.00016712,2]
[350740080,1738098641458,-500.0,0.00016712,2]
[350740081,1738098641470,-500.0,0.00016712,2]
[350740082,1738098641482,-500.0,0.00016712,2]
[350740083,1738098641494,-1265.09,0.00016712,2]
[350740084,1738098641506,-500.0,0.00016712,2]
[350740085,1738098641518,-192.92548583,0.00016712,2]
[350740086,1738098641531,-763.67,0.00016712,2]
[350740087,1738098641543,-1836.67,0.00016712,2]
[350740088,1738098641558,-416.97,0.00016712,2]
[350740089,1738098641682,-500.0,0.00016712,2]
[350740090,1738098641730,-537.13,0.00016712,2]
[350740091,1738098641741,-500.0,0.00016712,2]
[350740092,1738098641751,-4106.69,0.00016712,2]
[350740093,1738098641760,-564.49,0.00016712,2]
[350740094,1738098641770,-500.0,0.00016712,2]
[350740095,1738098641779,-500.0,0.00016712,2]
[350740096,1738098641789,-500.0,0.00016712,2]
[350740097,1738098641798,-327.33,0.00016712,2]
[350740098,1738098641811,-500.0,0.00016712,2]
[350740099,1738098641821,-2015.92,0.00016712,2]
[350740100,1738098641831,-500.0,0.00016712,2]
[350740101,1738098641841,-517.07,0.00016712,2]
[350740102,1738098641851,-3131.75,0.00016712,2]
[350740103,1738098641861,-1177.23,0.00016712,2]
[350740104,1738098641871,-500.0,0.00016712,2]
[350740105,1738098641882,-500.0,0.00016712,2]
[350740106,1738098641891,-668.64,0.00016712,2]
[350740107,1738098641901,-1446.56,0.00016712,2]
[350740108,1738098641911,-535.1307218,0.00016712,2]
[350740109,1738098641921,-1552.76,0.00016712,2]
[350740110,1738098641930,-500.0,0.00016712,2]
[350740111,1738098641939,-500.0,0.00016712,2]
[350740112,1738098641950,-500.0,0.00016712,2]
[350740113,1738098641959,-500.0,0.00016712,2]
[350740114,1738098641969,-609.19,0.00016712,2]
[350740115,1738098641978,-500.0,0.00016712,2]
[350740116,1738098641988,-500.0,0.00016712,2]
[350740117,1738098641997,-500.0,0.00016712,2]
[350740118,1738098642007,-1124.09,0.00016712,2]
[350740119,1738098642020,-552.24,0.00016712,2]
[350740120,1738098642030,-500.0,0.00016712,2]
[350740121,1738098642040,-500.0,0.00016712,2]
[350740122,1738098642050,-500.0,0.00016712,2]
[350740123,1738098642063,-554.44,0.00016712,2]
[350740124,1738098642073,-500.0,0.00016712,2]
[350740125,1738098642082,-500.0,0.00016712,2]
[350740126,1738098642092,-500.0,0.00016712,2]
[350740127,1738098642102,-500.0,0.00016847,2]
[350740128,1738098642111,-500.0,0.00016847,2]
[350740129,1738098642121,-831.24,0.00016847,2]
[350740130,1738098642131,-500.0,0.00016848,2]
[350740131,1738098642141,-500.0,0.00016848,2]
[350740132,1738098642151,-4970.53,0.00016848,2]
[350740133,1738098642161,-831.24,0.00016848,2]
[350740134,1738098642172,-500.0,0.00016849,2]
[350740135,1738098642183,-500.0,0.00016849,2]
[350740136,1738098642192,-500.0,0.00016849,2]
[350740137,1738098642201,-324.82925671,0.00016849,2]
[350740138,1738098642211,-500.0,0.00016849,2]
[350740139,1738098642220,-500.0,0.00016849,2]
[350740140,1738098642230,-361.12331457,0.00016849,2]
[350740141,1738098642239,-263.53260933,0.00016849,2]
[350740142,1738098642249,-500.0,0.00016849,2]
[350740143,1738098642259,-202.52206939,0.00016849,2]
[350740144,1738098642269,-500.0,0.00016849,2]
[350740145,1738098642279,-500.0,0.00016849,2]
[350740146,1738098642288,-1304.9,0.00016849,2]
[350740147,1738098642298,-500.0,0.00016849,2]
[350740148,1738098642310,-2545.06,0.00016849,2]
[350740149,1738098642320,-500.0,0.00016849,2]
[350740150,1738098642331,-767.31,0.00016849,2]
[350740151,1738098642340,-500.0,0.00016849,2]
[350740152,1738098642350,-500.0,0.00016849,2]
[350740153,1738098642360,-12732.97,0.00016849,2]
[350740154,1738098642370,-500.0,0.00016849,2]
[350740155,1738098642380,-500.0,0.00016849,2]
[350740156,1738098642389,-392.74704338,0.00016849,2]
[350740157,1738098642399,-1265.09,0.00016849,2]
[350740158,1738098642409,-500.0,0.00016849,2]
[350740159,1738098642419,-763.67,0.00016849,2]
[350740160,1738098642428,-1836.67,0.00016849,2]
[350740161,1738098642438,-500.0,0.00016849,2]
[350740162,1738098642448,-537.13,0.00016849,2]
[350740163,1738098642458,-500.0,0.00016849,2]
[350740164,1738098642467,-4106.69,0.00016849,2]
[350740165,1738098642478,-564.49,0.00016849,2]
[350740166,1738098642488,-500.0,0.00016849,2]
[350740167,1738098642498,-500.0,0.00016849,2]
[350740168,1738098642509,-500.0,0.00016849,2]
[350740169,1738098642519,-621.15,0.00016849,2]
[350740170,1738098642529,-2015.92,0.00016849,2]
[350740172,1738098642538,-500.0,0.00016849,2]
[350740173,1738098642547,-517.07,0.00016849,2]
[350740174,1738098642560,-3131.75,0.00016849,2]
[350740175,1738098642570,-1177.23,0.00016849,2]
[350740176,1738098642580,-500.0,0.00016849,2]
[350740177,1738098642590,-500.0,0.00016849,2]
[350740178,1738098642599,-668.64,0.00016849,2]
[350740179,1738098642609,-1446.56,0.00016849,2]
[350740180,1738098642619,-1552.76,0.00016849,2]
[350740181,1738098642629,-500.0,0.00016849,2]
[350740182,1738098642639,-500.0,0.00016849,2]
[350740184,1738098642648,-500.0,0.00016849,2]
[350740185,1738098642658,-500.0,0.00016849,2]
[350740186,1738098642668,-609.19,0.00016849,2]
[350740187,1738098642677,-500.0,0.00016849,2]
[350740188,1738098642688,-500.0,0.00016849,2]
[350740189,1738098642698,-1124.09,0.00016849,2]
[350740190,1738098642707,-552.24,0.00016849,2]
[350740191,1738098642717,-500.0,0.00016849,2]
[350740192,1738098642727,-500.0,0.00016849,2]
[350740193,1738098642737,-643.6971089,0.00016849,2]
[350740194,1738098642747,-554.44,0.00016849,2]
[350740196,1738098642757,-500.0,0.00016849,2]
[350740197,1738098642766,-500.0,0.00016849,2]
[350740198,1738098642776,-3000.0,0.00016886,2]
[350740199,1738098642786,-420.0,0.00016969,2]
[350740200,1738098642796,-500.0,0.00016985,2]
[350740201,1738098642808,-500.0,0.00016985,2]
[350740202,1738098642818,-4970.53,0.00016985,2]
[350740203,1738098642828,-831.24,0.00016985,2]
[350740205,1738098642838,-500.0,0.00016986,2]
[350740207,1738098642848,-500.0,0.00016986,2]
[350740209,1738098642858,-500.0,0.00016986,2]
[350740210,1738098642869,-500.0,0.00016986,2]
[350740212,1738098642879,-501.94045708,0.00016986,2]
[350740214,1738098642889,-500.0,0.00016986,2]
[350740216,1738098642900,-500.0,0.00016986,2]
[350740219,1738098642910,-1304.9,0.00016986,2]
[350740220,1738098642920,-500.0,0.00016986,2]
[350740222,1738098642930,-2545.06,0.00016986,2]
[350740225,1738098642941,-500.0,0.00016986,2]
[350740227,1738098642951,-767.31,0.00016986,2]
[350740228,1738098642961,-500.0,0.00016986,2]
[350740230,1738098642971,-287.17687862,0.00016986,2]
[350740232,1738098642980,-12732.97,0.00016986,2]
[350740234,1738098642990,-500.0,0.00016986,2]
[350740236,1738098643000,-500.0,0.00016986,2]
[350740238,1738098643011,-1265.09,0.00016986,2]
[350740240,1738098643025,-500.0,0.00016986,2]
[350740242,1738098643035,-763.67,0.00016986,2]
[350740244,1738098643046,-1836.67,0.00016986,2]
[350740246,1738098643057,-500.0,0.00016986,2]
[350740248,1738098643068,-537.13,0.00016986,2]
[350740250,1738098643078,-500.0,0.00016986,2]
[350740252,1738098643087,-4106.69,0.00016986,2]
[350740254,1738098643099,-564.49,0.00016986,2]
[350740256,1738098643110,-500.0,0.00016986,2]
[350740258,1738098643120,-500.0,0.00016986,2]
[350740260,1738098643131,-500.0,0.00016986,2]
[350740262,1738098643141,-2015.92,0.00016986,2]
[350740264,1738098643154,-500.0,0.00016986,2]
[350740266,1738098643164,-517.07,0.00016986,2]
[350740268,1738098643174,-3131.75,0.00016986,2]
[350740271,1738098643184,-1177.23,0.00016986,2]
[350740273,1738098643194,-500.0,0.00016986,2]
[350740275,1738098643204,-640.55927066,0.00016986,2]
[350740277,1738098643214,-668.64,0.00016986,2]
[350740279,1738098643224,-1446.56,0.00016986,2]
[350740282,1738098643244,-1552.76,0.00016986,2]
[350740284,1738098643260,-500.0,0.00016986,2]
[350740286,1738098643270,-250.32,0.00016986,2]
[350740288,1738098643281,-500.0,0.00016986,2]
[350740290,1738098643292,-500.0,0.00016986,2]
[350740293,1738098643302,-609.19,0.00016986,2]
[350740295,1738098643314,-500.0,0.00016986,2]
[350740297,1738098643325,-500.0,0.00016986,2]
[350740299,1738098643335,-1124.09,0.00016986,2]
[350740301,1738098643345,-552.24,0.00016986,2]
[350740303,1738098643355,-355.28982441,0.00016986,2]
[350740305,1738098643366,-500.0,0.00016986,2]
[350740307,1738098643376,-554.44,0.00016986,2]
[350740309,1738098643386,-517.13008383,0.00016986,2]
[350740311,1738098643396,-500.0,0.00016986,2]
[350740313,1738098643406,-500.0,0.00016988,2]
[350740315,1738098643417,-150.58306452,0.00017022,2]
[350740317,1738098643427,-500.0,0.00017121,2]
[350740319,1738098643438,-440.38022043,0.00017121,2]
[350740321,1738098643448,-831.24,0.00017121,2]
[350740323,1738098643459,-320.55592505,0.00017122,2]
[350740325,1738098643469,-4970.53,0.00017122,2]
[350740328,1738098643479,-831.24,0.00017122,2]
[350740330,1738098643489,-500.0,0.00017123,2]
[350740332,1738098643499,-500.0,0.00017123,2]
[350740334,1738098643508,-500.0,0.00017123,2]
[350740336,1738098643519,-500.0,0.00017123,2]
[350740338,1738098643528,-500.0,0.00017123,2]
[350740340,1738098643539,-500.0,0.00017123,2]
[350740342,1738098643550,-1304.9,0.00017123,2]
[350740344,1738098643562,-500.0,0.00017123,2]
[350740346,1738098643572,-2545.06,0.00017123,2]
[350740348,1738098643582,-500.0,0.00017123,2]
[350740350,1738098643592,-767.31,0.00017123,2]
[350740352,1738098643602,-500.0,0.00017123,2]
[350740354,1738098643612,-12732.97,0.00017123,2]
[350740356,1738098643622,-500.0,0.00017123,2]
[350740358,1738098643632,-500.0,0.00017123,2]
[350740360,1738098643644,-1265.09,0.00017123,2]
[350740362,1738098643654,-500.0,0.00017123,2]
[350740364,1738098643664,-763.67,0.00017123,2]
[350740366,1738098643675,-1836.67,0.00017123,2]
[350740368,1738098643685,-500.0,0.00017123,2]
[350740370,1738098643695,-537.13,0.00017123,2]
[350740372,1738098643706,-500.0,0.00017123,2]
[350740374,1738098643716,-4106.69,0.00017123,2]
[350740376,1738098643726,-564.49,0.00017123,2]
[350740378,1738098643736,-500.0,0.00017123,2]
[350740380,1738098643746,-500.0,0.00017123,2]
[350740382,1738098643755,-500.0,0.00017123,2]
[350740384,1738098643765,-2015.92,0.00017123,2]
[350740386,1738098643775,-517.07,0.00017123,2]
[350740387,1738098643785,-3131.75,0.00017123,2]
[350740390,1738098643795,-1177.23,0.00017123,2]
[350740391,1738098643808,-500.0,0.00017123,2]
[350740393,1738098643818,-668.64,0.00017123,2]
[350740395,1738098643828,-1446.56,0.00017123,2]
[350740398,1738098643838,-1552.76,0.00017123,2]
[350740400,1738098643849,-500.0,0.00017123,2]
[350740402,1738098643859,-500.0,0.00017123,2]
[350740404,1738098643869,-500.0,0.00017123,2]
[350740406,1738098643879,-609.19,0.00017123,2]
[350740408,1738098643889,-500.0,0.00017123,2]
[350740410,1738098643899,-500.0,0.00017123,2]
[350740412,1738098643910,-1124.09,0.00017123,2]
[350740413,1738098643919,-552.24,0.00017123,2]
[350740416,1738098643930,-500.0,0.00017123,2]
[350740418,1738098643940,-554.44,0.00017123,2]
[350740420,1738098643949,-500.0,0.00017123,2]
[350740422,1738098643959,-400.93692984,0.00017182,2]
[350740424,1738098643970,-501.53792323,0.00017208,2]
[350740426,1738098643980,-4970.53,0.00017259,2]
[350740428,1738098643990,-831.24,0.00017259,2]
[350740430,1738098643999,-500.0,0.0001726,2]
[350740432,1738098644009,-500.0,0.0001726,2]
[350740434,1738098644022,-500.0,0.0001726,2]
[350740436,1738098644032,-500.0,0.0001726,2]
[350740438,1738098644042,-500.0,0.0001726,2]
[350740440,1738098644051,-434.18,0.0001726,2]
[350740442,1738098644065,-1304.9,0.0001726,2]
[350740444,1738098644074,-500.0,0.0001726,2]
[350740446,1738098644088,-2545.06,0.0001726,2]
[350740448,1738098644100,-500.0,0.0001726,2]
[350740450,1738098644110,-767.31,0.0001726,2]
[350740452,1738098644119,-500.0,0.0001726,2]
[350740454,1738098644129,-12732.97,0.0001726,2]
[350740456,1738098644139,-500.0,0.0001726,2]
[350740459,1738098644149,-500.0,0.0001726,2]
[350740461,1738098644158,-1265.09,0.0001726,2]
[350740463,1738098644168,-359.30493667,0.0001726,2]
[350740465,1738098644178,-763.67,0.0001726,2]
[350740467,1738098644187,-1836.67,0.0001726,2]
[350740469,1738098644196,-500.0,0.0001726,2]
[350740471,1738098644206,-537.13,0.0001726,2]
[350740473,1738098644216,-500.0,0.0001726,2]
[350740475,1738098644225,-4106.69,0.0001726,2]
[350740477,1738098644235,-564.49,0.0001726,2]
[350740479,1738098644246,-500.0,0.0001726,2]
[350740481,1738098644255,-500.0,0.0001726,2]
[350740483,1738098644264,-500.0,0.0001726,2]
[350740485,1738098644274,-2015.92,0.0001726,2]
[350740487,1738098644284,-517.07,0.0001726,2]
[350740489,1738098644294,-3131.75,0.0001726,2]
[350740505,1738098644425,-1177.23,0.0001726,2]
[350740507,1738098644446,-500.0,0.0001726,2]
[350740509,1738098644457,-668.64,0.0001726,2]
[350740511,1738098644467,-1446.56,0.0001726,2]
[350740513,1738098644477,-1552.76,0.0001726,2]
[350740515,1738098644487,-500.0,0.0001726,2]
[350740517,1738098644496,-500.0,0.0001726,2]
[350740519,1738098644506,-500.0,0.0001726,2]
[350740521,1738098644516,-609.19,0.0001726,2]
[350740523,1738098644526,-214.90202485,0.0001726,2]
[350740525,1738098644538,-500.0,0.0001726,2]
[350740527,1738098644547,-1124.09,0.0001726,2]
[350740530,1738098644559,-552.24,0.0001726,2]
[350740532,1738098644569,-554.44,0.0001726,2]
[350740534,1738098644579,-500.0,0.0001726,2]
[350740536,1738098644588,-151.0,0.000173,2]
[350740538,1738098644598,-500.0,0.00017313,2]
[350740540,1738098644607,-224.20547008,0.00017323,2]
[350740542,1738098644617,-500.0,0.00017324,2]
[350740544,1738098644626,-500.62893881,0.00017331,2]
[350740546,1738098644635,-500.0,0.00017337,2]
[350740547,1738098644645,-831.24,0.00017395,2]
[350740549,1738098644655,-4970.53,0.00017396,2]
[350740551,1738098644664,-831.24,0.00017396,2]
[350740553,1738098644674,-500.0,0.00017397,2]
[350740555,1738098644684,-500.0,0.00017397,2]
[350740558,1738098644694,-500.0,0.00017397,2]
[350740560,1738098644704,-500.0,0.00017397,2]
[350740562,1738098644713,-500.0,0.00017397,2]
[350740563,1738098644723,-1304.9,0.00017397,2]
[350740566,1738098644732,-2545.06,0.00017397,2]
[350740568,1738098644742,-500.0,0.00017397,2]
[350740569,1738098644752,-767.31,0.00017397,2]
[350740572,1738098644761,-500.0,0.00017397,2]
[350740574,1738098644773,-12732.97,0.00017397,2]
[350740576,1738098644782,-500.0,0.00017397,2]
[350740578,1738098644792,-500.0,0.00017397,2]
[350740580,1738098644802,-1265.09,0.00017397,2]
[350740582,1738098644816,-763.67,0.00017397,2]
[350740584,1738098644827,-1836.67,0.00017397,2]
[350740586,1738098644837,-500.0,0.00017397,2]
[350740588,1738098644848,-537.13,0.00017397,2]
[350740590,1738098644858,-500.0,0.00017397,2]
[350740592,1738098644868,-4106.69,0.00017397,2]
[350740594,1738098644878,-564.49,0.00017397,2]
[350740596,1738098644888,-500.0,0.00017397,2]
[350740598,1738098644898,-500.0,0.00017397,2]
[350740600,1738098644907,-537.24,0.00017397,2]
[350740602,1738098644917,-2015.92,0.00017397,2]
[350740604,1738098644926,-517.07,0.00017397,2]
[350740605,1738098644936,-3131.75,0.00017397,2]
[350740608,1738098644946,-1177.23,0.00017397,2]
[350740610,1738098644956,-500.0,0.00017397,2]
[350740612,1738098644966,-668.64,0.00017397,2]
[350740614,1738098644975,-1446.56,0.00017397,2]
[350740616,1738098644985,-1552.76,0.00017397,2]
[350740618,1738098644994,-500.0,0.00017397,2]
[350740620,1738098645003,-500.0,0.00017397,2]
[350740622,1738098645014,-500.0,0.00017397,2]
[350740624,1738098645027,-609.19,0.00017397,2]
[350740626,1738098645036,-500.0,0.00017397,2]
[350740628,1738098645045,-1124.09,0.00017397,2]
[350740630,1738098645055,-552.24,0.00017397,2]
[350740632,1738098645066,-554.44,0.00017397,2]
[350740634,1738098645076,-500.0,0.00017397,2]
[350740636,1738098645087,-151.0,0.000175,2]
[350740638,1738098645097,-4970.53,0.00017533,2]
[350740640,1738098645107,-831.24,0.00017533,2]
[350740643,1738098645117,-500.0,0.00017534,2]
[350740644,1738098645127,-500.0,0.00017534,2]
[350740647,1738098645137,-500.0,0.00017534,2]
[350740648,1738098645146,-500.0,0.00017534,2]
[350740651,1738098645155,-500.0,0.00017534,2]
[350740653,1738098645165,-1304.9,0.00017534,2]
[350740655,1738098645175,-2545.06,0.00017534,2]
[350740657,1738098645184,-767.31,0.00017534,2]
[350740659,1738098645194,-500.0,0.00017534,2]
[350740661,1738098645204,-12732.97,0.00017534,2]
[350740663,1738098645213,-500.0,0.00017534,2]
[350740665,1738098645223,-500.0,0.00017534,2]
[350740667,1738098645232,-1265.09,0.00017534,2]
[350740669,1738098645242,-763.67,0.00017534,2]
[350740671,1738098645252,-1836.67,0.00017534,2]
[350740673,1738098645261,-500.0,0.00017534,2]
[350740675,1738098645271,-537.13,0.00017534,2]
[350740677,1738098645281,-500.0,0.00017534,2]
[350740679,1738098645291,-4106.69,0.00017534,2]
[350740681,1738098645300,-564.49,0.00017534,2]
[350740683,1738098645311,-297.31981809,0.00017534,2]
[350740685,1738098645320,-500.0,0.00017534,2]
[350740687,1738098645329,-2015.92,0.00017534,2]
[350740689,1738098645339,-517.07,0.00017534,2]
[350740691,1738098645348,-3131.75,0.00017534,2]
[350740693,1738098645357,-1177.23,0.00017534,2]
[350740695,1738098645367,-454.89709495,0.00017534,2]
[350740697,1738098645376,-668.64,0.00017534,2]
[350740699,1738098645386,-1446.56,0.00017534,2]
[350740700,1738098645395,-1552.76,0.00017534,2]
[350740704,1738098645417,-500.0,0.00017534,2]
[350740706,1738098645428,-500.0,0.00017534,2]
[350740708,1738098645439,-609.19,0.00017534,2]
[350740710,1738098645449,-628.9787172,0.00017534,2]
[350740712,1738098645459,-1124.09,0.00017534,2]
[350740714,1738098645469,-552.24,0.00017534,2]
[350740716,1738098645480,-554.44,0.00017534,2]
[350740719,1738098645491,-500.0,0.00017534,2]
[350740721,1738098645501,-500.0,0.00017564,2]
[350740723,1738098645511,-300.0,0.000176,7]
[350740725,1738098645521,-150.0,0.00017621,2]
[350740727,1738098645532,-150.0,0.00017621,2]
[350740729,1738098645542,-150.309,0.00017621,2]
[350740733,1738098645552,-150.0,0.00017621,2]
[350740736,1738098645563,-298.57,0.00017621,2]
[350740738,1738098645573,-150.0,0.00017621,2]
[350740740,1738098645583,-2043.0,0.00017621,2]
[350740742,1738098645594,-540.316,0.00017621,2]
[350740746,1738098645604,-2303.0,0.00017621,2]
[350740750,1738098645615,-432.451,0.00017621,2]
[350740754,1738098645626,-831.24,0.00017669,2]
[350740757,1738098645636,-4970.53,0.0001767,2]
[350740760,1738098645646,-831.24,0.0001767,2]
[350740762,1738098645656,-500.0,0.00017671,2]
[350740764,1738098645666,-500.0,0.00017671,2]
[350740767,1738098645675,-500.0,0.00017671,2]
[350740769,1738098645685,-500.0,0.00017671,2]
[350740771,1738098645695,-500.0,0.00017671,2]
[350740774,1738098645704,-1304.9,0.00017671,2]
[350740776,1738098645714,-2545.06,0.00017671,2]
[350740778,1738098645724,-767.31,0.00017671,2]
[350740780,1738098645734,-500.0,0.00017671,2]
[350740782,1738098645744,-12732.97,0.00017671,2]
[350740785,1738098645754,-500.0,0.00017671,2]
[350740788,1738098645764,-500.0,0.00017671,2]
[350740791,1738098645774,-1265.09,0.00017671,2]
[350740793,1738098645783,-763.67,0.00017671,2]
[350740795,1738098645793,-1836.67,0.00017671,2]
[350740797,1738098645803,-500.0,0.00017671,2]
[350740799,1738098645815,-537.13,0.00017671,2]
[350740800,1738098645825,-500.0,0.00017671,2]
[350740801,1738098645835,-4106.69,0.00017671,2]
[350740802,1738098645845,-564.49,0.00017671,2]
[350740803,1738098645854,-620.46,0.00017671,2]
[350740804,1738098645865,-2015.92,0.00017671,2]
[350740805,1738098645875,-517.07,0.00017671,2]
[350740806,1738098645885,-3131.75,0.00017671,2]
[350740807,1738098645895,-1177.23,0.00017671,2]
[350740808,1738098645904,-668.64,0.00017671,2]
[350740809,1738098645914,-1446.56,0.00017671,2]
[350740810,1738098645924,-1552.76,0.00017671,2]
[350740811,1738098645933,-500.0,0.00017671,2]
[350740812,1738098645944,-500.0,0.00017671,2]
[350740813,1738098645954,-609.19,0.00017671,2]
[350740814,1738098645964,-1124.09,0.00017671,2]
[350740815,1738098645974,-552.24,0.00017671,2]
[350740816,1738098645983,-554.44,0.00017671,2]
[350740817,1738098645993,-500.0,0.00017671,2]
[350740818,1738098646003,-5221.39,0.000177,2]
[350740819,1738098646014,-151.0,0.000177,2]
[350740821,1738098646027,-4970.53,0.00017807,2]
[350740823,1738098646036,-831.24,0.00017807,2]
[350740825,1738098646045,-500.0,0.00017808,2]
[350740827,1738098646055,-500.0,0.00017808,2]
[350740829,1738098646066,-500.0,0.00017808,2]
[350740831,1738098646075,-500.0,0.00017808,2]
[350740833,1738098646085,-500.0,0.00017808,2]
[350740835,1738098646096,-1304.9,0.00017808,2]
[350740837,1738098646106,-2545.06,0.00017808,2]
[350740839,1738098646115,-767.31,0.00017808,2]
[350740841,1738098646125,-500.0,0.00017808,2]
[350740843,1738098646135,-12732.97,0.00017808,2]
[350740845,1738098646144,-500.0,0.00017808,2]
[350740847,1738098646154,-500.0,0.00017808,2]
[350740849,1738098646164,-1265.09,0.00017808,2]
[350740851,1738098646174,-763.67,0.00017808,2]
[350740853,1738098646184,-1836.67,0.00017808,2]
[350740855,1738098646194,-500.0,0.00017808,2]
[350740857,1738098646204,-537.13,0.00017808,2]
[350740859,1738098646214,-327.41346915,0.00017808,2]
[350740861,1738098646224,-4106.69,0.00017808,2]
[350740863,1738098646234,-564.49,0.00017808,2]
[350740865,1738098646244,-2015.92,0.00017808,2]
[350740867,1738098646254,-517.07,0.00017808,2]
[350740870,1738098646263,-3131.75,0.00017808,2]
[350740872,1738098646273,-1177.23,0.00017808,2]
[350740874,1738098646283,-668.64,0.00017808,2]
[350740876,1738098646292,-1446.56,0.00017808,2]
[350740878,1738098646302,-1552.76,0.00017808,2]
[350740880,1738098646313,-500.0,0.00017808,2]
[350740882,1738098646323,-609.19,0.00017808,2]
[350740884,1738098646332,-552.24,0.00017808,2]
[350740886,1738098646341,-1124.09,0.00017808,2]
[350740888,1738098646351,-554.44,0.00017808,2]
[350740890,1738098646361,-500.0,0.00017808,2]
[350740892,1738098646370,-1000.0,0.00017872,2]
[350740894,1738098646380,-151.0,0.000179,2]
[350740896,1738098646390,-4970.53,0.00017944,2]
[350740898,1738098646400,-831.24,0.00017944,2]
[350740900,1738098646410,-831.24,0.00017944,2]
[350740902,1738098646420,-831.24,0.00017944,2]
[350740904,1738098646430,-831.24,0.00017944,2]